bitfinex/quotes_ETHUSD_20250625
["timestamp","ask_amount","ask_price","bid_price","bid_amount"]
[1750862488523,4.93158415,2419.1,2418.7,0.55]
[1750862488722,0.7977,2419.1,2418.5,4.13470558]
[1750862488893,0.7587,2419.0,2417.1,0.8109]
[1750862489095,11.83712174,2418.9,2418.3,4.13507068]
[1750862489405,11.83713449,2418.9,2418.2,4.13520914]
[1750862489606,5.80740391,2418.8,2418.2,4.13520914]
[1750862489904,2.341,2418.7,2418.1,4.1354533]
[1750862490226,1.67297851,2418.8,2417.9,0.8311]
[1750862490423,10.043,2418.7,2418.5,4.13479125]
[1750862490791,10.043,2418.7,2418.4,4.13489902]
[1750862491029,10.7587,2419.0,2418.4,4.13489902]
[1750862491190,10.7587,2419.0,2418.1,0.55]
[1750862491191,14.17719941,2418.9,2418.3,4.68501416]
[1750862491396,14.17719941,2418.9,2418.4,4.13496297]
[1750862491642,17.0841835,2418.9,2418.4,4.13496297]
[1750862491826,12.94998409,2418.9,2418.4,4.13496297]
[1750862492022,12.94998409,2418.9,2418.3,4.68512179]
[1750862492023,12.94998409,2418.9,2418.5,4.13476405]
[1750862492216,12.94998409,2418.9,2418.0,4.63233183]
[1750862492217,12.94998409,2418.9,2418.4,4.13489806]
[1750862492420,0.7587,2419.0,2418.3,4.13513625]
[1750862492597,0.37,2419.6,2418.6,4.13462333]
[1750862492598,0.765,2419.3,2418.6,4.13462333]
[1750862492797,7.7,2419.2,2419.1,4.13373627]
[1750862493698,7.7,2419.2,2418.7,0.55]
[1750862494027,7.7,2419.2,2419.0,4.13378044]
[1750862494231,7.7,2419.2,2419.0,4.13377821]
[1750862494436,7.7,2419.2,2419.1,4.13376875]
[1750862494633,7.699,2419.2,2419.0,4.13382304]
[1750862494797,7.699,2419.2,2419.1,4.13373047]
[1750862497033,0.808,2419.7,2419.6,4.13291453]
[1750862497194,7.698,2419.7,2419.6,4.13291453]
[1750862497398,7.698,2419.7,2419.3,0.2064]
[1750862497600,0.2064,2419.8,2419.6,4.68291453]
[1750862497822,3.1065,2420.3,2420.2,4.13188992]
[1750862498029,2.341,2420.3,2420.2,4.13188992]
[1750862498331,2.341,2420.3,2420.2,4.68188992]
[1750862498718,7.694,2420.8,2420.6,4.13104478]
[1750862498918,7.694,2420.8,2420.7,4.13089982]
[1750862499502,7.694,2420.8,2420.6,4.13112973]
[1750862499932,7.694,2420.8,2420.7,4.13103647]
[1750862500334,4.13028206,2421.2,2420.4,0.55]
[1750862500335,0.827,2421.2,2420.8,4.13086582]
[1750862500554,8.517,2421.2,2420.9,4.13057148]
[1750862500853,7.69,2421.1,2421.0,4.1304058]
[1750862501154,1.0858,2421.2,2420.8,4.13072257]
[1750862501155,1.0858,2421.2,2420.8,4.68077009]
[1750862501359,8.7758,2421.2,2420.8,4.68077009]
[1750862501661,8.7758,2421.2,2420.8,4.68077818]
[1750862501857,8.7758,2421.2,2421.0,4.1305206]
[1750862502024,8.7758,2421.2,2420.8,0.55]
[1750862502355,8.7758,2421.2,2421.0,4.13038597]
[1750862502526,8.7738,2421.2,2421.0,4.13038597]
[1750862502728,8.7738,2421.2,2420.8,4.68080418]
[1750862505258,8.7738,2421.2,2420.9,4.13064215]
[1750862505458,0.87738,2421.1,2420.5,0.7772]
[1750862505656,4.91368471,2420.9,2420.4,4.13142639]
[1750862505854,10.002,2420.8,2420.3,4.13164117]
[1750862506054,10.002,2420.8,2419.9,0.7719]
[1750862506055,11.49354744,2420.8,2419.9,0.7719]
[1750862506257,4.13116139,2420.7,2420.2,4.13187725]
[1750862506443,11.49354744,2420.8,2420.2,4.13180339]
[1750862506642,4.1311306,2420.7,2420.1,4.1319111]
[1750862506844,4.1311306,2420.7,2420.2,4.13187045]
[1750862507035,1.5624678,2420.6,2420.3,4.1316999]
[1750862507236,7.681,2420.5,2420.3,4.1316999]
[1750862507965,0.2064,2420.8,2420.5,4.68137781]
[1750862508166,0.7829,2420.9,2420.7,4.13103647]
[1750862508458,7.679,2420.8,2420.7,4.13103647]
[1750862508860,7.679,2420.8,2420.7,4.68103647]
[1750862509069,11.7754,2421.5,2420.7,1.14262143]
[1750862509262,7.678,2421.4,2421.1,4.13022271]
[1750862509559,7.678,2421.4,2421.3,4.1300128]
[1750862509765,7.678,2421.4,2421.1,0.2064]
[1750862509938,7.678,2421.4,2421.1,4.33673268]
[1750862510146,14.0944,2421.5,2421.2,4.13018338]
[1750862510330,9.08644,2421.4,2421.2,4.13018338]
[1750862510533,9.08644,2421.4,2421.2,4.13017431]
[1750862510727,1.40944,2421.4,2421.1,0.2064]
[1750862511043,1.40944,2421.4,2421.2,4.13005894]
[1750862511253,0.2064,2421.5,2421.1,0.2064]
[1750862511440,0.7635,2421.8,2421.4,4.1297116]
[1750862511441,7.675,2421.6,2421.4,4.1297116]
[1750862511631,7.675,2421.6,2421.3,4.12992085]
[1750862511833,7.675,2421.6,2421.4,4.12981481]
[1750862512765,7.675,2421.6,2421.2,0.2064]
[1750862512939,0.99454,2421.5,2421.4,4.12984224]
[1750862513142,7.675,2421.6,2421.4,4.12984224]
[1750862513365,7.672,2421.5,2421.2,0.2064]
[1750862513565,0.7863,2421.3,2420.9,4.13063847]
[1750862513740,7.672,2421.2,2421.1,4.13026964]
[1750862513944,5.12302844,2421.9,2421.2,4.68018338]
[1750862514268,14.12934789,2421.7,2421.2,4.68018338]
[1750862514455,14.12934789,2421.7,2421.4,0.2064]
[1750862514658,0.7516,2421.5,2420.7,10.0]
[1750862514965,0.7516,2421.5,2421.0,4.13040009]
[1750862514966,7.8774,2421.4,2421.0,4.13040009]
[1750862515164,4.13016931,2421.3,2420.7,4.13092205]
[1750862515471,2.5244,2421.2,2420.8,4.33716152]
[1750862516373,2.5244,2421.2,2420.9,4.13068259]
[1750862516576,2.5244,2421.2,2420.8,0.2064]
[1750862516741,2.5244,2421.2,2420.8,4.33718302]
[1750862516943,0.79302992,2421.1,2420.8,4.33718302]
[1750862517140,7.667,2421.0,2420.8,0.2064]
[1750862517647,0.7911,2420.9,2420.0,0.8188]
[1750862517869,0.2064,2420.7,2420.5,4.13128841]
[1750862518074,0.37,2421.2,2420.5,5.38385725]
[1750862518281,7.665,2421.2,2420.8,4.13074966]
[1750862518455,7.665,2421.2,2420.9,4.13066117]
[1750862518659,7.665,2421.2,2420.8,4.68080738]
[1750862518856,7.665,2421.2,2421.0,4.13048107]
[1750862519141,7.665,2421.2,2420.9,4.13063319]
[1750862519578,7.665,2421.2,2420.8,4.68082361]
[1750862519776,10.94349691,2421.2,2420.8,0.55]
[1750862519947,10.94349691,2421.2,2420.8,4.68077942]
[1750862520149,7.663,2421.1,2420.8,0.55]
[1750862520343,7.663,2421.1,2420.3,4.13159832]
[1750862520344,0.7571,2420.9,2420.2,4.13173134]
[1750862520672,4.88788975,2420.9,2420.4,4.1314737]
[1750862520876,5.61966031,2420.8,2420.3,4.13162383]
[1750862521172,7.662,2420.7,2420.3,4.13157045]
[1750862521343,11.79311651,2420.7,2420.2,4.13178952]
[1750862521550,7.662,2420.7,2420.3,4.13170063]
[1750862521851,9.98,2420.7,2420.5,4.13137708]
[1750862522056,11.61566432,2420.7,2420.6,4.13120713]
[1750862522251,9.98,2420.7,2419.9,5.50309367]
[1750862522458,9.98,2420.7,2420.4,4.13146782]
[1750862523255,4.96105795,2420.6,2420.1,4.1319683]
[1750862523490,1.4941058,2420.5,2420.1,4.1319683]
[1750862523781,7.659,2420.4,2420.1,4.1319683]
[1750862523984,7.659,2420.4,2420.3,4.1317192]
[1750862524283,7.658,2420.4,2420.3,4.6817192]
[1750862524452,0.8298,2420.6,2420.3,4.6817192]
[1750862524453,7.658,2420.6,2420.3,4.1315749]
[1750862524651,7.658,2420.6,2420.4,4.13140021]
[1750862524866,0.7651,2420.9,2420.1,4.68205655]
[1750862525180,9.975,2420.8,2420.4,4.13147314]
[1750862525580,4.13117473,2420.7,2420.2,4.13180587]
[1750862525777,4.13117473,2420.7,2419.8,4.13256383]
[1750862525778,4.13136117,2420.6,2419.7,4.93413151]
[1750862525980,4.13052931,2421.0,2419.3,14.13325892]
[1750862525981,10.8031,2421.2,2419.8,0.8014]
[1750862526186,11.78667126,2421.0,2420.2,4.68183751]
[1750862526383,0.8085,2420.8,2420.2,4.68181808]
[1750862526552,4.1310551,2420.7,2420.2,4.68181808]
[1750862526748,7.656,2420.6,2420.2,4.68181808]
[1750862527245,7.656,2420.6,2420.3,4.13171428]
[1750862527459,7.656,2420.6,2420.2,0.55]
[1750862527683,8.91554426,2420.6,2420.2,4.68181056]
[1750862527976,8.91554426,2420.6,2420.3,4.13171586]
[1750862528165,8.91554426,2420.6,2420.3,0.2064]
[1750862528570,3.1413,2420.5,2420.3,0.2064]
[1750862528873,7.653,2420.4,2420.1,4.13205765]
[1750862529072,7.653,2420.4,2420.2,4.13180375]
[1750862529450,7.653,2420.4,2420.3,4.1317192]
[1750862530398,0.7773,2421.4,2420.3,0.8263577]
[1750862530681,0.7773,2421.4,2420.9,4.13055615]
[1750862530884,0.7773,2421.4,2420.5,10.0]
[1750862531095,4.90721876,2421.4,2420.9,4.13065885]
[1750862531382,0.7773,2421.4,2420.9,4.13065885]
[1750862531548,4.62080696,2421.3,2420.8,4.13086462]
[1750862531751,7.65,2421.2,2420.8,4.13086462]
[1750862532782,7.65,2421.2,2420.6,4.13114207]
[1750862532783,11.7802024,2421.2,2420.7,4.13096754]
[1750862532987,2.318,2421.1,2420.8,4.13078732]
[1750862533189,0.9968,2421.0,2420.7,4.13090201]
[1750862533354,0.9968,2421.0,2420.6,4.13120453]
[1750862533780,0.7625,2420.9,2420.6,4.13120453]
[1750862533983,7.647,2420.8,2420.6,4.13120453]
[1750862534197,7.647,2420.8,2420.1,0.8143]
[1750862534198,7.647,2420.8,2420.7,4.13103647]
[1750862534367,7.647,2420.8,2420.6,4.13115439]
[1750862535191,8.58663,2420.8,2420.6,4.13115439]
[1750862535354,8.58663,2420.8,2420.7,4.13103647]
[1750862535684,7.646,2420.8,2420.7,4.13103647]
[1750862535887,0.7625,2420.9,2420.4,4.13150737]
[1750862536191,7.644,2420.8,2420.4,4.13145763]
[1750862536388,4.13114622,2420.7,2420.2,4.13188593]
[1750862536589,7.644,2420.8,2420.3,4.13171485]
[1750862536590,1.17751462,2420.6,2420.3,4.13171485]
[1750862536954,7.644,2420.8,2420.4,4.13142125]
[1750862537360,1.1325,2420.9,2420.5,4.13134645]
[1750862537575,9.938,2420.8,2420.4,4.13142125]
[1750862537765,9.938,2420.8,2420.3,4.13165008]
[1750862537977,9.938,2420.8,2420.4,4.1315485]
[1750862538181,11.55778354,2420.8,2420.2,4.13174574]
[1750862538472,4.13111633,2420.7,2420.2,4.13174574]
[1750862538672,4.13120987,2420.6,2420.1,4.68195041]
[1750862538878,0.7846,2420.4,2419.9,4.13231139]
[1750862539066,7.641,2420.3,2419.6,15.499602]
[1750862539268,7.641,2420.3,2419.6,0.8167]
[1750862539478,2.296,2420.2,2419.8,4.1324871]
[1750862539673,2.296,2420.2,2419.9,4.13239845]
[1750862540502,2.296,2420.2,2419.8,0.2064]
[1750862540727,4.13240216,2419.9,2418.7,1.28516097]
[1750862540995,0.2064,2419.5,2419.4,4.13310747]
[1750862541211,10.7186,2419.8,2419.4,4.13316607]
[1750862541501,4.13292035,2419.6,2419.3,0.2064]
[1750862541671,4.13292035,2419.6,2419.1,4.13368043]
[1750862541672,0.2064,2419.4,2419.0,0.2064]
[1750862541862,0.2064,2419.4,2419.1,4.13367807]
[1750862541863,7.637,2419.3,2419.1,4.13367807]
[1750862542481,7.637,2419.3,2419.0,4.34025519]
[1750862543198,8.4253,2419.3,2419.0,0.2064]
[1750862543497,9.934,2419.3,2419.0,0.2064]
[1750862543999,1.22044,2419.2,2418.8,4.13414508]
[1750862544219,1.22044,2419.2,2418.7,4.34076571]
[1750862544396,5.35405176,2419.2,2418.7,0.2064]
[1750862544597,0.2064,2419.0,2418.5,0.2064]
[1750862545004,4.92020167,2420.2,2419.0,0.55]
[1750862545302,4.92020167,2420.2,2419.6,4.13277449]
[1750862545303,2.296,2420.1,2419.6,4.13277449]
[1750862545515,4.13224483,2420.0,2419.0,0.7757]
[1750862545715,0.8136,2419.8,2419.1,0.55]
[1750862545877,4.13285326,2419.7,2419.2,4.1335847]
[1750862546076,7.634,2419.6,2419.1,4.68368096]
[1750862546272,2.296,2419.5,2419.2,4.1335698]
[1750862547116,0.8136,2419.8,2419.4,4.13325617]
[1750862547272,9.93,2419.6,2419.4,4.13325617]
[1750862547476,0.63523806,2419.7,2419.5,4.13305245]
[1750862547704,10.7426,2419.8,2419.5,4.13305245]
[1750862547908,9.929,2419.8,2419.6,4.13277884]
[1750862548275,9.929,2419.8,2419.2,4.90488211]
[1750862548276,0.8213,2420.1,2419.7,0.55]
[1750862548471,9.929,2420.0,2419.8,4.13257293]
[1750862548697,9.929,2420.0,2419.9,4.13240216]
[1750862548993,9.928,2420.1,2419.8,4.13255369]
[1750862549211,9.928,2420.1,2420.0,4.1322314]
[1750862549599,9.928,2420.1,2419.9,4.68227738]
[1750862549799,9.928,2420.1,2419.7,4.13260804]
[1750862549998,10.9208,2420.1,2419.7,4.13260804]
[1750862550183,10.9208,2420.1,2419.8,4.13256769]
[1750862550184,0.9928,2420.1,2419.8,4.13256769]
[1750862550394,9.927,2420.1,2419.8,4.13244595]
[1750862550979,9.927,2420.1,2419.7,0.55]
[1750862551604,14.0590913,2420.1,2419.7,0.55]
[1750862552011,9.925,2420.0,2419.7,0.55]
[1750862552239,7.629,2420.8,2420.2,0.55]
[1750862552516,4.13068455,2421.0,2419.9,10.55]
[1750862552517,7.629,2421.0,2420.7,4.1308729]
[1750862552682,3.1173,2421.1,2420.6,4.68112433]
[1750862552878,3.1173,2421.1,2420.7,4.1308929]
[1750862553081,0.8019,2421.4,2420.9,4.13069519]
[1750862553281,9.924,2421.3,2420.3,10.7751]
[1750862553490,9.924,2421.3,2420.9,4.13059065]
[1750862553700,9.924,2421.3,2421.1,4.13034345]
[1750862553907,9.924,2421.3,2420.6,4.68120713]
[1750862553908,12.48357456,2421.3,2421.0,4.13047032]
[1750862555014,12.48357456,2421.3,2421.0,4.1304777]
[1750862555178,12.48357456,2421.3,2421.1,4.13032633]
[1750862555510,12.48357456,2421.3,2421.0,4.13049879]
[1750862556017,1.0083,2421.4,2421.1,4.13035333]
[1750862556231,18.366,2421.5,2421.2,0.2064]
[1750862556384,18.364,2421.5,2421.4,4.12984224]
[1750862556746,18.364,2421.5,2421.4,0.2064]
[1750862557295,18.364,2421.5,2421.4,4.33624224]
[1750862558218,18.364,2421.5,2421.4,0.2064]
[1750862558717,18.364,2421.5,2421.4,4.33624224]
[1750862558899,18.36,2421.5,2421.4,4.33624224]
[1750862559709,18.36,2421.5,2421.1,4.68021118]
[1750862560025,18.36,2421.5,2421.2,0.2064]
[1750862560220,18.36,2421.5,2421.2,4.33649171]
[1750862560599,7.618,2421.4,2421.2,4.33649171]
[1750862560801,10.74,2421.5,2421.3,4.6800128]
[1750862561013,7.617,2421.4,2421.3,4.1300128]
[1750862561526,10.74,2421.5,2421.4,4.12984224]
[1750862561702,18.357,2421.5,2421.4,4.12984224]
[1750862561915,18.357,2421.5,2421.3,4.33634139]
[1750862562425,2.296,2421.6,2421.5,4.12967169]
[1750862562611,9.912,2421.6,2421.5,4.12967169]
[1750862562809,9.912,2421.6,2421.4,4.12975405]
[1750862563013,9.912,2421.6,2421.5,4.12967169]
[1750862563014,2.296,2421.6,2421.5,4.12967169]
[1750862563202,9.91,2421.6,2421.5,4.12967169]
[1750862563396,0.2064,2421.8,2421.5,4.12967169]
[1750862563738,7.614,2421.8,2421.7,4.12932829]
[1750862564027,2.295,2421.9,2421.8,4.12916012]
[1750862564331,14.03700104,2421.9,2421.7,0.2064]
[1750862564531,0.2064,2421.7,2421.4,4.12968548]
[1750862564730,7.612,2421.6,2421.4,4.12968548]
[1750862565134,7.612,2421.6,2421.2,4.33651139]
[1750862565135,7.612,2421.6,2421.3,4.12998094]
[1750862565318,7.612,2421.6,2421.5,0.2064]
[1750862565520,7.612,2421.6,2421.2,4.13007328]
[1750862565827,7.612,2421.6,2421.3,4.13001093]
[1750862566038,7.612,2421.6,2421.2,4.3364935]
[1750862566039,9.11717546,2421.6,2421.2,4.3364935]
[1750862568335,9.11717546,2421.6,2421.2,0.2064]
[1750862568503,9.11717546,2421.6,2421.4,4.12983329]
[1750862568703,9.11717546,2421.6,2421.5,4.12967169]
[1750862568704,7.612,2421.6,2421.5,4.12967169]
[1750862568946,7.612,2421.6,2421.5,4.33607169]
[1750862568947,7.607,2421.6,2421.5,4.33607169]
[1750862569710,7.607,2421.6,2421.3,4.12985035]
[1750862569930,7.607,2421.6,2421.4,4.12973257]
[1750862570130,7.607,2421.6,2421.3,4.33633385]
[1750862570447,7.607,2421.6,2421.4,4.12983677]
[1750862570807,7.607,2421.6,2421.3,4.33633436]
[1750862571034,7.607,2421.6,2421.3,0.2064]
[1750862571201,5.63418289,2421.6,2421.3,0.2064]
[1750862571403,4.13003387,2421.3,2420.6,4.13120713]
[1750862571754,7.604,2421.2,2420.8,0.2064]
[1750862572106,11.73421871,2421.2,2420.8,0.2064]
[1750862572528,7.604,2421.2,2420.8,4.33724715]
[1750862572806,7.604,2421.2,2420.8,0.2064]
[1750862572807,11.73418731,2421.2,2420.8,0.2064]
[1750862573126,9.21104887,2421.2,2420.8,0.2064]
[1750862573328,7.604,2421.2,2420.9,4.13068467]
[1750862573643,0.2064,2421.3,2420.8,4.33724196]
[1750862573818,7.602,2421.1,2421.0,4.13049897]
[1750862574419,7.602,2421.1,2420.8,0.2064]
[1750862574945,7.602,2421.1,2420.8,4.33725265]
[1750862575146,9.02325285,2421.1,2420.8,0.2064]
[1750862575761,13.15369857,2421.1,2420.8,0.2064]
[1750862575969,4.89313588,2421.0,2420.5,4.68124467]
[1750862576265,5.09953588,2421.0,2420.6,0.2064]
[1750862576475,6.92485133,2421.0,2420.6,0.2064]
[1750862576945,6.92485133,2421.0,2420.6,4.33757974]
[1750862576946,2.79431545,2421.0,2420.6,4.33757974]
[1750862577464,2.79431545,2421.0,2420.7,4.13103004]
[1750862577635,2.79431545,2421.0,2420.6,4.33753164]
[1750862578045,0.969,2421.0,2420.7,4.13103647]
[1750862578356,0.2064,2421.2,2420.9,4.1306047]
[1750862578536,7.596,2421.1,2420.9,4.1306047]
[1750862579455,7.596,2421.1,2420.8,4.68079747]
[1750862579626,7.596,2421.1,2420.9,4.13069219]
[1750862580024,7.596,2421.1,2420.8,4.68077715]
[1750862580227,10.09392289,2421.1,2420.8,0.55]
[1750862580474,4.13054414,2421.0,2420.7,0.2064]
[1750862580625,4.13054414,2421.0,2420.5,0.8239]
[1750862580626,4.13054414,2421.0,2420.5,4.95519662]
[1750862580831,0.2064,2421.0,2420.6,4.3375314]
[1750862581277,0.2064,2421.0,2420.6,0.2064]
[1750862581435,5.59446487,2421.0,2420.6,0.2064]
[1750862581804,4.13087246,2420.8,2420.4,0.55]
[1750862581973,2.274,2420.8,2420.7,4.68095456]
[1750862582178,7.591,2421.2,2421.0,4.1304202]
[1750862582467,23.009,2421.3,2421.0,4.13052146]
[1750862582468,20.9414,2421.3,2421.0,4.13052146]
[1750862582628,7.591,2421.2,2421.0,4.13052146]
[1750862583173,7.591,2421.2,2420.9,4.33701019]
[1750862583351,7.591,2421.2,2420.9,0.2064]
[1750862583870,7.591,2421.2,2421.0,4.13052199]
[1750862584068,7.589,2421.1,2421.0,4.13052199]
[1750862584766,13.009,2421.3,2421.2,4.13018338]
[1750862584970,13.009,2421.3,2421.2,4.68018338]
[1750862585171,13.009,2421.3,2421.2,4.88658338]
[1750862585339,13.009,2421.3,2421.2,0.7564]
[1750862585537,10.735,2421.3,2421.2,0.7564]
[1750862586070,10.735,2421.3,2421.2,4.88658338]
[1750862586261,5.84048698,2421.6,2421.2,0.7564]
[1750862586462,0.6651687,2421.5,2421.2,0.2064]
[1750862586663,4.79493794,2421.5,2421.2,0.2064]
[1750862587070,4.12985918,2421.4,2421.2,0.2064]
[1750862587468,4.13035397,2421.1,2421.0,0.2064]
[1750862587657,4.13035397,2421.1,2420.7,0.2064]
[1750862587658,2.274,2421.1,2420.7,0.2064]
[1750862587857,7.584,2421.0,2420.7,0.2064]
[1750862588070,0.9895,2421.2,2420.7,4.33733616]
[1750862588071,9.858,2420.9,2420.7,4.33733616]
[1750862588244,0.9895,2421.2,2420.8,4.13084009]
[1750862588245,2.274,2421.0,2420.8,4.13084009]
[1750862588448,2.274,2421.0,2420.9,4.68069519]
[1750862588669,2.274,2421.0,2420.9,4.88709519]
[1750862590461,0.9934,2421.4,2421.0,4.13052457]
[1750862590667,2.88516,2421.4,2421.2,4.13018338]
[1750862590862,9.855,2421.3,2421.2,4.13018338]
[1750862591175,9.855,2421.3,2421.1,4.33665774]
[1750862591675,7.579,2421.2,2421.1,4.33665774]
[1750862592173,7.579,2421.2,2421.1,0.2064]
[1750862592349,8.58494,2421.2,2421.1,0.2064]
[1750862593568,7.579,2421.2,2421.1,0.2064]
[1750862595778,7.574,2421.2,2421.1,0.2064]
[1750862596886,7.574,2421.2,2421.1,4.33675397]
[1750862597094,7.574,2421.2,2421.1,0.2064]
[1750862597587,7.574,2421.2,2420.9,0.2064]
[1750862598272,7.574,2421.2,2421.0,4.13045153]
[1750862598478,7.571,2421.1,2421.0,4.13045153]
[1750862598665,7.571,2421.1,2420.9,4.33702685]
[1750862599091,7.571,2421.1,2420.9,0.2064]
[1750862599699,7.571,2421.1,2420.9,4.33708722]
[1750862600005,7.571,2421.1,2420.9,0.2064]
[1750862600203,7.571,2421.1,2420.9,4.33708597]
[1750862601083,10.2064,2421.4,2420.9,4.33706132]
[1750862601292,7.566,2421.3,2421.2,4.13010013]
[1750862601698,0.7658,2422.0,2421.3,1.3577]
[1750862601898,0.7658,2422.3,2421.5,0.55]
[1750862602071,7.565,2422.3,2422.1,4.12858924]
[1750862602394,7.565,2422.3,2422.2,4.12847824]
[1750862602595,0.2064,2422.4,2422.2,4.12847824]
[1750862602897,7.564,2422.3,2422.1,4.33496629]
[1750862603198,7.564,2422.3,2422.1,0.2064]
[1750862603566,7.564,2422.3,2422.1,4.33502703]
[1750862603765,8.34104,2422.3,2422.1,0.2064]
[1750862603962,12.46936556,2422.3,2421.9,0.2064]
[1750862604284,8.34104,2422.3,2421.9,4.33537003]
[1750862604479,8.34104,2422.3,2422.0,4.1287881]
[1750862604693,8.34104,2422.3,2421.9,4.33529249]
[1750862605365,7.564,2422.3,2422.0,4.67880195]
[1750862605678,11.68944041,2422.3,2422.0,0.2064]
[1750862605883,11.68944041,2422.3,2421.9,0.2064]
[1750862606089,10.8036,2422.2,2421.1,0.7857]
[1750862606261,14.93211697,2422.2,2421.6,4.12933908]
[1750862606464,11.3022117,2422.1,2421.6,0.55]
[1750862606670,7.558,2422.0,2421.7,0.7857]
[1750862607088,7.558,2422.0,2421.7,4.91495115]
[1750862607287,7.558,2422.0,2421.3,0.7553]
[1750862607571,4.95422907,2421.7,2421.1,4.88550477]
[1750862607890,7.557,2421.6,2421.2,0.55]
[1750862608265,11.68652056,2421.6,2421.1,4.88550477]
[1750862608564,11.6866434,2421.6,2421.1,4.13032938]
[1750862608764,7.557,2421.6,2421.2,4.68018338]
[1750862609100,7.557,2421.6,2421.3,4.12991573]
[1750862609389,8.48601416,2421.6,2421.4,4.12982362]
[1750862609693,7.557,2421.6,2421.5,4.12967169]
[1750862609895,7.553,2421.7,2421.6,4.12949607]
[1750862610781,7.553,2421.7,2421.5,4.12953182]
[1750862611578,4.95223617,2422.0,2421.5,4.12953182]
[1750862611797,9.04522362,2421.9,2421.4,4.91223579]
[1750862611983,9.04522362,2421.9,2421.5,4.12960384]
[1750862612390,7.549,2421.8,2421.6,4.12947835]
[1750862612591,7.549,2421.8,2421.5,4.12959794]
[1750862613105,7.549,2421.8,2421.4,4.91224994]
[1750862613269,7.549,2421.8,2421.4,0.7825]
[1750862613469,13.30301536,2421.8,2421.2,4.68010812]
[1750862614093,4.12935919,2421.7,2421.2,4.68010812]
[1750862614297,4.12960779,2421.6,2421.1,4.1302822]
[1750862614494,8.72636078,2421.5,2421.1,4.1302822]
[1750862614671,8.3134,2421.5,2421.2,4.13018142]
[1750862614870,8.3134,2421.5,2420.8,1.3758]
[1750862614871,8.3134,2421.5,2420.8,0.8258]
[1750862615074,4.1299699,2421.4,2420.8,4.13086582]
[1750862615277,0.7664,2421.5,2420.8,0.55]
[1750862615483,7.545,2421.4,2421.3,4.12999479]
[1750862615879,7.545,2421.4,2421.2,4.13010587]
[1750862616084,7.545,2421.4,2421.2,4.33650587]
[1750862616375,7.545,2421.4,2421.2,4.33650751]
[1750862616581,7.545,2421.4,2421.2,0.2064]
[1750862616882,7.544,2421.4,2421.2,4.33657998]
[1750862617706,7.544,2421.4,2421.2,0.2064]
[1750862618971,7.99000941,2421.4,2421.2,0.2064]
[1750862619176,7.99000941,2421.4,2420.6,0.8024]
[1750862619177,0.2064,2421.3,2421.0,4.13052379]
[1750862619382,0.2064,2421.3,2420.9,4.33700238]
[1750862619784,0.2064,2421.3,2421.0,4.13051652]
[1750862620010,7.539,2421.4,2421.1,4.13026377]
[1750862620181,7.539,2421.4,2421.2,4.13010027]
[1750862620605,7.539,2421.4,2421.3,4.1300128]
[1750862620904,0.2064,2421.5,2421.3,4.1300128]
[1750862621105,0.2064,2421.5,2421.1,4.13029217]
[1750862621106,7.7454,2421.5,2421.2,4.13011006]
[1750862621287,7.7454,2421.5,2421.1,0.55]
[1750862621607,11.87511313,2421.5,2421.1,4.68035185]
[1750862622003,7.7454,2421.5,2421.1,4.68035185]
[1750862622204,7.7454,2421.5,2421.2,4.1301541]
[1750862622585,7.536,2421.4,2421.2,4.1301541]
[1750862623204,7.536,2421.4,2421.1,4.68026236]
[1750862624482,7.536,2421.4,2421.0,0.2064]
[1750862624679,7.536,2421.4,2421.1,4.13035052]
[1750862624875,8.94829831,2421.4,2421.1,4.13035052]
[1750862625212,0.2064,2421.2,2420.8,4.33720334]
[1750862625409,0.7737,2421.3,2420.4,4.13139351]
[1750862625410,4.13069422,2421.0,2420.4,4.13139351]
[1750862625612,4.13069422,2421.0,2420.4,0.2064]
[1750862625613,0.2064,2420.8,2420.4,0.2064]
[1750862625811,0.7737,2420.4,2420.0,4.13223094]
[1750862626010,0.9801,2420.4,2420.1,4.13205206]
[1750862626212,7.531,2420.7,2420.0,4.1322314]
[1750862626508,7.531,2420.7,2420.3,0.2064]
[1750862626715,7.531,2420.7,2420.3,4.33802725]
[1750862626891,14.07145472,2420.7,2420.3,0.2064]
[1750862627095,9.94033652,2420.7,2420.3,0.2064]
[1750862627295,0.2064,2420.6,2420.2,4.13182034]
[1750862627693,0.2064,2420.6,2420.3,4.13163812]
[1750862627892,0.2064,2420.6,2420.4,4.13152632]
[1750862628210,7.531,2420.7,2420.5,4.13137781]
[1750862628211,7.529,2420.7,2420.5,4.13137781]
[1750862628416,7.529,2420.7,2420.6,4.13120713]
[1750862629009,7.529,2420.7,2420.4,4.3378718]
[1750862629312,0.83,2420.2,2419.8,4.13253876]
[1750862629512,7.528,2420.1,2419.9,4.13238258]
[1750862630515,0.8178,2420.5,2420.0,4.1322314]
[1750862630711,9.752,2420.4,2420.1,4.13195395]
[1750862630912,9.752,2420.4,2420.2,4.13188281]
[1750862631113,0.7591,2420.7,2420.4,4.13151615]
[1750862631318,7.525,2420.6,2420.4,4.13151615]
[1750862631514,7.525,2420.6,2420.3,4.68165404]
[1750862631721,7.525,2420.6,2420.3,0.55]
[1750862632108,8.98901604,2420.6,2420.0,0.7764]
[1750862632300,4.13137781,2420.5,2419.8,4.13247766]
[1750862632496,4.13172045,2420.3,2419.8,4.13247766]
[1750862632811,4.13172045,2420.3,2419.7,4.13268723]
[1750862632812,12.42978144,2420.2,2419.7,4.13268723]
[1750862632991,2.225,2420.1,2419.7,4.13268723]
[1750862633391,2.225,2420.1,2419.4,4.89829917]
[1750862633392,7.82264405,2420.1,2419.4,4.89829917]
[1750862633594,7.82264405,2420.1,2419.6,4.13289613]
[1750862633794,3.69047814,2420.1,2419.6,4.13289613]
[1750862633995,2.225,2420.1,2419.5,0.55]
[1750862634194,2.225,2420.1,2419.8,4.13243148]